fUST/lending_fUST_20240619
["ID","MTS","AMOUNT","RATE_DAILY","PERIOD"]
[329846979,1718746247727,-4082.99,0.00016985,2]
[329846980,1718746247736,-500.0,0.00016985,2]
[329846981,1718746247745,-152.00988186,0.00016985,2]
[329846982,1718746247756,-500.0,0.00016985,2]
[329846983,1718746247765,-500.0,0.00016985,2]
[329846984,1718746247775,-426.3859472,0.00017078,2]
[329846985,1718746247784,-381.94324788,0.00017159,2]
[329846986,1718746247795,-500.0,0.00017257,2]
[329846987,1718746247806,-500.0,0.00017257,2]
[329846988,1718746247815,-500.0,0.00017257,2]
[329846989,1718746247826,-500.0,0.00017257,2]
[329846990,1718746247835,-500.0,0.00017257,2]
[329846991,1718746247845,-500.0,0.00017257,2]
[329846992,1718746247855,-500.0,0.00017257,2]
[329846993,1718746247866,-1453.3,0.00017257,2]
[329846994,1718746247877,-500.0,0.00017257,2]
[329846995,1718746247886,-500.0,0.00017257,2]
[329846996,1718746247896,-500.0,0.00017257,2]
[329846997,1718746247905,-2570.01,0.00017257,2]
[329846998,1718746247914,-385.10761159,0.00017258,15]
[329846999,1718746247923,-221.90869239,0.00017258,13]
[329847000,1718746247933,-500.0,0.00017258,2]
[329847001,1718746247942,-500.0,0.00017258,2]
[329847002,1718746247951,-500.0,0.00017258,2]
[329847003,1718746247961,-500.0,0.00017258,2]
[329847004,1718746247970,-365.95232418,0.00017258,2]
[329847005,1718746247980,-500.0,0.00017258,2]
[329847006,1718746247989,-500.0,0.00017258,2]
[329847007,1718746247998,-500.0,0.00017258,2]
[329847008,1718746248008,-500.0,0.00017258,2]
[329847009,1718746248018,-500.0,0.00017258,2]
[329847010,1718746248027,-500.0,0.00017258,2]
[329847011,1718746248037,-500.0,0.00017258,2]
[329847012,1718746248046,-500.0,0.00017258,2]
[329847013,1718746248055,-500.0,0.00017258,2]
[329847014,1718746248064,-295.05,0.00017258,2]
[329847015,1718746248074,-500.0,0.00017258,2]
[329847016,1718746248083,-500.0,0.00017258,2]
[329847017,1718746248092,-500.0,0.00017258,2]
[329847018,1718746248101,-500.0,0.00017258,2]
[329847019,1718746248113,-500.0,0.00017258,2]
[329847020,1718746248123,-500.0,0.00017258,2]
[329847021,1718746248134,-500.0,0.00017258,2]
[329847022,1718746248144,-500.0,0.00017258,2]
[329847023,1718746248153,-500.0,0.00017258,2]
[329847024,1718746248163,-500.0,0.00017258,2]
[329847025,1718746248173,-955.66,0.00017258,2]
[329847026,1718746248183,-500.0,0.00017258,2]
[329847027,1718746248193,-6426.33,0.00017258,2]
[329847028,1718746248203,-500.0,0.00017258,2]
[329847029,1718746248212,-500.0,0.00017258,2]
[329847030,1718746248223,-500.0,0.00017258,2]
[329847031,1718746248232,-500.0,0.00017258,2]
[329847032,1718746248242,-500.0,0.00017258,2]
[329847033,1718746248253,-500.0,0.00017258,2]
[329847034,1718746248263,-500.0,0.00017258,2]
[329847035,1718746248273,-525.25,0.00017258,2]
[329847036,1718746248284,-500.0,0.00017258,2]
[329847037,1718746248295,-1363.73,0.00017258,2]
[329847038,1718746248304,-500.0,0.00017258,2]
[329847039,1718746248313,-598.34,0.00017258,2]
[329847040,1718746248324,-500.0,0.00017258,2]
[329847041,1718746248334,-500.0,0.00017258,2]
[329847042,1718746248344,-500.0,0.00017258,2]
[329847043,1718746248357,-500.0,0.00017258,2]
[329847044,1718746248366,-500.0,0.00017258,2]
[329847045,1718746248376,-500.0,0.00017258,2]
[329847046,1718746248385,-500.0,0.00017258,2]
[329847047,1718746248395,-500.0,0.00017258,2]
[329847048,1718746248404,-500.0,0.00017258,2]
[329847049,1718746248415,-500.0,0.00017258,2]
[329847050,1718746248425,-500.0,0.00017258,2]
[329847051,1718746248435,-524.22,0.00017258,2]
[329847052,1718746248444,-483.22371629,0.00017258,2]
[329847053,1718746248454,-624.73630589,0.00017258,2]
[329847054,1718746248463,-607.03,0.00017258,2]
[329847055,1718746248472,-500.0,0.00017258,2]
[329847056,1718746248483,-181.03536778,0.00017259,2]
[329847057,1718746248493,-500.0,0.00017259,2]
[329847058,1718746248502,-500.0,0.00017259,2]
[329847059,1718746248512,-500.0,0.00017259,2]
[329847060,1718746248521,-500.0,0.00017259,2]
[329847061,1718746248530,-500.0,0.00017259,2]
[329847062,1718746248540,-500.0,0.00017259,2]
[329847063,1718746248550,-4082.99,0.00017259,2]
[329847064,1718746248559,-500.0,0.00017259,2]
[329847065,1718746248569,-500.0,0.00017259,2]
[329847066,1718746248578,-500.0,0.00017259,2]
[329847067,1718746248587,-381.94324788,0.00017433,2]
[329847068,1718746248596,-636.95491205,0.00017531,2]
[329847069,1718746248609,-500.0,0.00017531,2]
[329847070,1718746248619,-500.0,0.00017531,2]
[329847071,1718746248630,-500.0,0.00017531,2]
[329847072,1718746248639,-500.0,0.00017531,2]
[329847073,1718746248653,-500.0,0.00017531,2]
[329847074,1718746248663,-500.0,0.00017531,2]
[329847075,1718746248673,-1453.3,0.00017531,2]
[329847076,1718746248682,-500.0,0.00017531,2]
[329847077,1718746248691,-500.0,0.00017531,2]
[329847078,1718746248701,-500.0,0.00017531,2]
[329847079,1718746248710,-2570.01,0.00017531,2]
[329847080,1718746248719,-397.42854314,0.00017532,2]
[329847081,1718746248729,-500.0,0.00017532,2]
[329847082,1718746248739,-500.0,0.00017532,2]
[329847083,1718746248749,-500.0,0.00017532,2]
[329847084,1718746248758,-500.0,0.00017532,2]
[329847085,1718746248767,-500.0,0.00017532,2]
[329847086,1718746248778,-500.0,0.00017532,2]
[329847087,1718746248789,-500.0,0.00017532,2]
[329847088,1718746248798,-500.0,0.00017532,2]
[329847089,1718746248808,-500.0,0.00017532,2]
[329847090,1718746248818,-500.0,0.00017532,2]
[329847091,1718746248830,-500.0,0.00017532,2]
[329847092,1718746248839,-500.0,0.00017532,2]
[329847093,1718746248848,-500.0,0.00017532,2]
[329847094,1718746248860,-500.0,0.00017532,2]
[329847095,1718746248875,-500.0,0.00017532,2]
[329847096,1718746248888,-500.0,0.00017532,2]
[329847097,1718746248902,-955.66,0.00017532,2]
[329847098,1718746248916,-500.0,0.00017532,2]
[329847099,1718746248929,-6426.33,0.00017532,2]
[329847100,1718746248940,-500.0,0.00017532,2]
[329847101,1718746248951,-500.0,0.00017532,2]
[329847102,1718746248964,-500.0,0.00017532,2]
[329847103,1718746248975,-500.0,0.00017532,2]
[329847104,1718746248987,-500.0,0.00017532,2]
[329847105,1718746248999,-500.0,0.00017532,2]
[329847106,1718746249011,-500.0,0.00017532,2]
[329847107,1718746249024,-525.25,0.00017532,2]
[329847108,1718746249037,-500.0,0.00017532,2]
[329847109,1718746249049,-1363.73,0.00017532,2]
[329847110,1718746249060,-500.0,0.00017532,2]
[329847111,1718746249074,-500.0,0.00017532,2]
[329847112,1718746249086,-451.26061929,0.00017532,2]
[329847113,1718746249098,-500.0,0.00017532,2]
[329847114,1718746249113,-500.0,0.00017532,2]
[329847115,1718746249124,-500.0,0.00017532,2]
[329847116,1718746249136,-500.0,0.00017532,2]
[329847117,1718746249147,-500.0,0.00017532,2]
[329847118,1718746249158,-484.08,0.00017532,2]
[329847119,1718746249170,-500.0,0.00017532,2]
[329847120,1718746249182,-500.0,0.00017532,2]
[329847121,1718746249193,-392.75061859,0.00017532,2]
[329847122,1718746249205,-524.22,0.00017532,2]
[329847123,1718746249217,-607.03,0.00017532,2]
[329847124,1718746249227,-500.0,0.00017532,2]
[329847125,1718746249237,-500.0,0.00017533,2]
[329847126,1718746249249,-500.0,0.00017533,2]
[329847127,1718746249260,-500.0,0.00017533,2]
[329847128,1718746249272,-500.0,0.00017533,2]
[329847129,1718746249284,-4082.99,0.00017533,2]
[329847130,1718746249295,-533.99067711,0.00017533,2]
[329847131,1718746249307,-500.0,0.00017533,2]
[329847132,1718746249319,-500.0,0.00017533,2]
[329847133,1718746249331,-2000.0,0.00017706,2]
[329847134,1718746249344,-21218.04107297,0.00017706,2]
[329847135,1718746249357,-381.94324788,0.00017707,2]
[329847136,1718746249370,-500.0,0.00017805,2]
[329847137,1718746249381,-500.0,0.00017805,2]
[329847138,1718746249391,-500.0,0.00017805,2]
[329847139,1718746249401,-500.0,0.00017805,2]
[329847140,1718746249411,-500.0,0.00017805,2]
[329847141,1718746249421,-500.0,0.00017805,2]
[329847142,1718746249431,-1453.3,0.00017805,2]
[329847143,1718746249443,-500.0,0.00017805,2]
[329847144,1718746249454,-500.0,0.00017805,2]
[329847145,1718746249466,-500.0,0.00017805,2]
[329847146,1718746249487,-2570.01,0.00017805,2]
[329847147,1718746249499,-500.0,0.00017806,2]
[329847148,1718746249509,-500.0,0.00017806,2]
[329847149,1718746249519,-201.01,0.00017806,2]
[329847150,1718746249530,-500.0,0.00017806,2]
[329847151,1718746249541,-294.77567397,0.00017806,2]
[329847152,1718746249552,-500.0,0.00017806,2]
[329847153,1718746249564,-500.0,0.00017806,2]
[329847154,1718746249575,-350.79465647,0.00017806,2]
[329847155,1718746249585,-500.0,0.00017806,2]
[329847156,1718746249596,-500.0,0.00017806,2]
[329847157,1718746249608,-500.0,0.00017806,2]
[329847158,1718746249618,-500.0,0.00017806,2]
[329847159,1718746249629,-500.0,0.00017806,2]
[329847160,1718746249639,-275.48295176,0.00017806,2]
[329847161,1718746249650,-500.0,0.00017806,2]
[329847162,1718746249660,-500.0,0.00017806,2]
[329847163,1718746249671,-955.66,0.00017806,2]
[329847164,1718746249682,-500.0,0.00017806,2]
[329847165,1718746249693,-6426.33,0.00017806,2]
[329847166,1718746249704,-500.0,0.00017806,2]
[329847167,1718746249715,-588.47,0.00017806,2]
[329847168,1718746249726,-500.0,0.00017806,2]
[329847169,1718746249736,-500.0,0.00017806,2]
[329847170,1718746249748,-500.0,0.00017806,2]
[329847171,1718746249759,-500.0,0.00017806,2]
[329847172,1718746249770,-525.25,0.00017806,2]
[329847173,1718746249786,-500.0,0.00017806,2]
[329847174,1718746249796,-1363.73,0.00017806,2]
[329847175,1718746249807,-499.28155554,0.00017806,2]
[329847176,1718746249818,-500.0,0.00017806,2]
[329847177,1718746249829,-500.0,0.00017806,2]
[329847178,1718746249840,-500.0,0.00017806,2]
[329847179,1718746249851,-500.0,0.00017806,2]
[329847180,1718746249868,-500.0,0.00017806,2]
[329847181,1718746249878,-500.0,0.00017806,2]
[329847182,1718746249889,-524.22,0.00017806,2]
[329847183,1718746249900,-607.03,0.00017806,2]
[329847184,1718746249911,-500.0,0.00017806,2]
[329847185,1718746249921,-500.0,0.00017807,2]
[329847186,1718746249932,-500.0,0.00017807,2]
[329847187,1718746249943,-500.0,0.00017807,2]
[329847188,1718746249954,-4082.99,0.00017807,2]
[329847189,1718746249965,-500.0,0.00017807,2]
[329847190,1718746249976,-500.0,0.00017807,2]
[329847191,1718746249987,-500.0,0.00018079,2]
[329847192,1718746249998,-500.0,0.00018079,2]
[329847193,1718746250009,-1453.3,0.00018079,2]
[329847194,1718746250020,-2570.01,0.00018079,2]
[329847195,1718746250031,-500.0,0.0001808,2]
[329847196,1718746250042,-151.0,0.0001808,2]
[329847197,1718746250053,-500.0,0.0001808,2]
[329847198,1718746250064,-500.0,0.0001808,2]
[329847199,1718746250074,-500.0,0.0001808,2]
[329847200,1718746250085,-500.0,0.0001808,2]
[329847201,1718746250096,-613.64208035,0.0001808,2]
[329847202,1718746250108,-500.0,0.0001808,2]
[329847203,1718746250118,-644.2457587,0.0001808,2]
[329847204,1718746250129,-500.0,0.0001808,2]
[329847205,1718746250140,-500.0,0.0001808,2]
[329847206,1718746250152,-500.0,0.0001808,2]
[329847207,1718746250285,-500.0,0.0001808,2]
[329847208,1718746250303,-500.0,0.0001808,2]
[329847209,1718746250312,-955.66,0.0001808,2]
[329847210,1718746250323,-500.0,0.0001808,2]
[329847211,1718746250332,-6426.33,0.0001808,2]
[329847212,1718746250342,-500.0,0.0001808,2]
[329847213,1718746250353,-500.0,0.0001808,2]
[329847214,1718746250366,-500.0,0.0001808,2]
[329847215,1718746250375,-500.0,0.0001808,2]
[329847216,1718746250386,-525.25,0.0001808,2]
[329847217,1718746250396,-500.0,0.0001808,2]
[329847218,1718746250405,-1363.73,0.0001808,2]
[329847219,1718746250415,-500.0,0.0001808,2]
[329847220,1718746250425,-511.94,0.0001808,2]
[329847221,1718746250434,-500.0,0.0001808,2]
[329847222,1718746250443,-524.22,0.0001808,2]
[329847223,1718746250453,-607.03,0.0001808,2]
[329847224,1718746250462,-500.0,0.0001808,2]
[329847225,1718746250471,-500.0,0.00018081,2]
[329847226,1718746250480,-500.0,0.00018081,2]
[329847227,1718746250490,-4082.99,0.00018081,2]
[329847228,1718746250499,-500.0,0.00018353,2]
[329847229,1718746250507,-500.0,0.00018353,2]
[329847230,1718746250517,-1453.3,0.00018353,2]
[329847231,1718746250526,-2570.01,0.00018353,2]
[329847232,1718746250535,-500.0,0.00018354,2]
[329847233,1718746250545,-500.0,0.00018354,2]
[329847234,1718746250554,-500.0,0.00018354,2]
[329847235,1718746250564,-500.0,0.00018354,2]
[329847236,1718746250573,-955.66,0.00018354,2]
[329847237,1718746250583,-500.0,0.00018354,2]
[329847238,1718746250592,-6426.33,0.00018354,2]
[329847239,1718746250601,-500.0,0.00018354,2]
[329847240,1718746250613,-500.0,0.00018354,2]
[329847241,1718746250623,-500.0,0.00018354,2]
[329847242,1718746250632,-525.25,0.00018354,2]
[329847243,1718746250641,-500.0,0.00018354,2]
[329847244,1718746250651,-1363.73,0.00018354,2]
[329847245,1718746250660,-500.0,0.00018354,2]
[329847246,1718746250670,-524.22,0.00018354,2]
[329847247,1718746250680,-607.03,0.00018354,2]
[329847248,1718746250689,-500.0,0.00018354,2]
[329847249,1718746250699,-586.8,0.00018355,2]
[329847250,1718746250708,-568.44,0.00018355,2]
[329847251,1718746250718,-4082.99,0.00018355,2]
[329847252,1718746250728,-420.0,0.00018377,2]
[329847253,1718746250738,-160.0,0.0001855,2]
[329847254,1718746250747,-791.94899099,0.00018564,2]
[329847255,1718746250757,-485.5,0.00018627,2]
[329847256,1718746250766,-500.0,0.00018627,2]
[329847257,1718746250776,-1453.3,0.00018627,2]
[329847258,1718746250786,-2570.01,0.00018627,2]
[329847259,1718746250801,-516.26688123,0.00018628,2]
[329847260,1718746250811,-2232.1334245,0.00018628,2]
[329847261,1718746250821,-232.494374,0.00018628,2]
[329847262,1718746250831,-516.3,0.00018628,2]
[329847263,1718746250841,-500.0,0.00018628,2]
[329847264,1718746250851,-500.0,0.00018628,2]
[329847265,1718746250863,-955.66,0.00018628,2]
[329847266,1718746250875,-553.74,0.00018628,2]
[329847267,1718746250886,-6426.33,0.00018628,2]
[329847268,1718746250896,-419.08,0.00018628,2]
[329847269,1718746250906,-500.0,0.00018628,2]
[329847270,1718746250915,-525.25,0.00018628,2]
[329847271,1718746250925,-620.58,0.00018628,2]
[329847272,1718746250933,-1363.73,0.00018628,2]
[329847273,1718746250943,-500.0,0.00018628,2]
[329847274,1718746250953,-524.22,0.00018628,2]
[329847275,1718746250962,-607.03,0.00018628,2]
[329847276,1718746250972,-500.0,0.00018628,2]
[329847277,1718746250982,-155.73496383,0.00018629,2]
[329847278,1718746250991,-4082.99,0.00018629,2]
[329847279,1718746251001,-500.0,0.00018865,2]
[329847280,1718746251010,-524.87187844,0.00018901,2]
[329847281,1718746251019,-500.0,0.00018901,2]
[329847282,1718746251028,-1453.3,0.00018901,2]
[329847283,1718746251037,-2570.01,0.00018901,2]
[329847284,1718746251046,-609.16,0.00018902,2]
[329847285,1718746251056,-191.2,0.00018902,2]
[329847286,1718746251066,-500.0,0.00018902,2]
[329847287,1718746251076,-955.66,0.00018902,2]
[329847288,1718746251088,-6426.33,0.00018902,2]
[329847289,1718746251097,-399.08,0.00018902,2]
[329847290,1718746251108,-525.25,0.00018902,2]
[329847291,1718746251118,-1363.73,0.00018902,2]
[329847292,1718746251128,-500.0,0.00018902,2]
[329847293,1718746251138,-524.22,0.00018902,2]
[329847294,1718746251147,-607.03,0.00018902,2]
[329847295,1718746251156,-500.0,0.00018902,2]
[329847296,1718746251166,-4082.99,0.00018903,2]
[329847297,1718746251176,-304.67,0.00019,7]
[329847298,1718746251186,-415.5,0.00019006,2]
[329847299,1718746251195,-201.0,0.00019006,2]
[329847300,1718746251204,-307.717659,0.00019096,2]
[329847301,1718746251214,-263.28,0.00019175,2]
[329847302,1718746251223,-1453.3,0.00019175,2]
[329847303,1718746251232,-2570.01,0.00019175,2]
[329847304,1718746251241,-955.66,0.00019176,2]
[329847305,1718746251251,-6426.33,0.00019176,2]
[329847306,1718746251260,-525.25,0.00019176,2]
[329847307,1718746251270,-1363.73,0.00019176,2]
[329847308,1718746251280,-194.0,0.00019176,2]
[329847309,1718746251289,-524.22,0.00019176,2]
[329847310,1718746251299,-607.03,0.00019176,2]
[329847311,1718746251308,-500.0,0.00019176,2]
[329847312,1718746251317,-4082.99,0.00019177,2]
[329847313,1718746251327,-500.0,0.00019178,2]
[329847314,1718746251337,-568.43423013,0.00019178,2]
[329847315,1718746251347,-165.527653,0.00019178,2]
[329847316,1718746251358,-1750.0,0.00019293,2]
[329847317,1718746251368,-474.86784569,0.0001939,2]
[329847318,1718746251377,-243.669,0.00019407,2]
[329847319,1718746251386,-210.413,0.00019407,2]
[329847320,1718746251396,-164.371,0.00019407,2]
[329847321,1718746251405,-1453.3,0.00019449,2]
[329847322,1718746251415,-2570.01,0.00019449,2]
[329847323,1718746251424,-955.66,0.0001945,2]
[329847324,1718746251433,-6426.33,0.0001945,2]
[329847325,1718746251442,-525.25,0.0001945,2]
[329847326,1718746251452,-1363.73,0.0001945,2]
[329847327,1718746251462,-524.22,0.0001945,2]
[329847328,1718746251471,-607.03,0.0001945,2]
[329847329,1718746251480,-500.0,0.0001945,2]
[329847330,1718746251490,-4082.99,0.00019451,2]
[329847331,1718746251499,-415.5,0.0001952,2]
[329847332,1718746251508,-201.0,0.0001952,2]
[329847333,1718746251518,-153.0,0.00019625,2]
[329847334,1718746251528,-205.5620548,0.00019625,2]
[329847335,1718746251536,-411.0639012,0.00019625,2]
[329847336,1718746251546,-205.5620548,0.00019625,2]
[329847337,1718746251555,-1453.3,0.00019723,2]
[329847338,1718746251565,-2570.01,0.00019723,2]
[329847339,1718746251574,-155.26263249,0.00019724,2]
[329847340,1718746251583,-500.0,0.00019724,2]
[329847341,1718746251593,-955.66,0.00019724,2]
[329847342,1718746251603,-6426.33,0.00019724,2]
[329847343,1718746251614,-525.25,0.00019724,2]
[329847344,1718746251623,-1363.73,0.00019724,2]
[329847345,1718746251633,-524.22,0.00019724,2]
[329847346,1718746251643,-607.03,0.00019724,2]
[329847347,1718746251652,-500.0,0.00019724,2]
[329847348,1718746251662,-4082.99,0.00019725,2]
[329847349,1718746251671,-156.09569436,0.00019799,3]
[329847350,1718746251681,-593.0,0.000199,2]
[329847351,1718746251690,-22612.55977126,0.00019985,2]
[329847352,1718746251700,-1453.3,0.00019997,2]
[329847353,1718746251709,-2570.01,0.00019997,2]
[329847354,1718746251719,-955.66,0.00019998,2]
[329847355,1718746251728,-6426.33,0.00019998,2]
[329847356,1718746251738,-525.25,0.00019998,2]
[329847357,1718746251747,-1363.73,0.00019998,2]
[329847358,1718746251758,-524.22,0.00019998,2]
[329847359,1718746251768,-607.03,0.00019998,2]
[329847360,1718746251782,-850.24175498,0.00019999,2]
[329847361,1718746251792,-500.0,0.00019999,2]
[329847362,1718746251802,-4082.99,0.00019999,2]
[329847363,1718746251811,-12969.8771199,0.0002,2]
[329847364,1718746251822,-809.87524397,0.0002,2]
[329847365,1718746251873,-306.42220999,0.0002,2]
[329847366,1718746251882,-1864.84836251,0.0002,2]
[329847367,1718746251893,-4165.79262619,0.0002,2]
[329847368,1718746251903,-173.03680131,0.0002,2]
[329847376,1718747158176,-200.838215,0.00015753,2]
[329847377,1718747158197,-843.78865212,0.00015753,2]
[329847378,1718747244159,-701.19885806,0.00015651,4]
[329847379,1718747252113,-2422.00232014,0.00015651,4]
[329847380,1718747252136,-660.86706893,0.00015652,2]
[329847381,1718747252158,-475.55610348,0.00015753,2]
[329847382,1718747252181,-685.9619741,0.0001661,2]
[329847383,1718747252207,-300.0,0.00016706,2]
[329847384,1718747252229,-300.0,0.00016706,2]
[329847385,1718747252252,-602.75373846,0.00016707,2]
[329847386,1718747252272,-868.05250448,0.00016707,2]
[329847387,1718747252294,-427.51372666,0.00016707,2]
[329847388,1718747252318,-156.91379928,0.00016707,2]
[329847389,1718747252340,-956.85489221,0.00016707,2]
[329847390,1718747372171,-419.07209572,0.00016705,4]
[329847402,1718747436004,-286.87043309,0.00016705,2]
[329847404,1718747436014,-1409.62749557,0.00016705,4]
[329847481,1718747438921,-189.91651734,0.00016705,4]
[329847482,1718747438931,-300.0,0.00016706,2]
[329847483,1718747438940,-1398.23837852,0.00016707,2]
[329847484,1718747438950,-587.96700956,0.00016707,2]
[329847485,1718747438959,-159.7459389,0.00016707,2]
[329847486,1718747438969,-152.0,0.00016707,2]
[329847487,1718747438979,-1912.47554364,0.00016708,2]
[329847488,1718747438988,-500.0,0.00016709,2]
[329847489,1718747438998,-500.0,0.00016709,2]
[329847490,1718747439007,-500.0,0.00016709,2]
[329847491,1718747439017,-76.50520575,0.00016709,2]
[329847492,1718747439029,-348.50479425,0.00016709,2]
[329847494,1718747439038,-500.0,0.00016709,2]
[329847496,1718747439047,-500.0,0.00016709,2]
[329847498,1718747439058,-500.0,0.00016709,2]
[329847500,1718747439068,-199.25,0.00016709,2]
[329847502,1718747439077,-500.0,0.00016709,2]
[329847504,1718747439087,-500.0,0.00016709,2]
[329847506,1718747439097,-623.55,0.00016709,2]
[329847508,1718747439106,-500.0,0.00016709,2]
[329847510,1718747439116,-500.0,0.00016709,2]
[329847512,1718747439126,-456.27127201,0.00016709,2]
[329847515,1718747439136,-3733.66,0.00016709,2]
[329847517,1718747439146,-500.0,0.00016709,2]
[329847519,1718747439156,-500.0,0.00016709,2]
[329847520,1718747439169,-500.0,0.00016709,2]
[329847523,1718747439180,-500.0,0.00016709,2]
[329847524,1718747439190,-500.0,0.00016709,2]
[329847526,1718747439200,-500.0,0.00016709,2]
[329847529,1718747439210,-500.0,0.0001671,2]
[329847531,1718747439220,-453.00672091,0.0001671,2]
[329847533,1718747439230,-564.39870166,0.0001671,2]
[329847534,1718747439239,-500.0,0.0001671,2]
[329847536,1718747439252,-500.0,0.0001698,2]
[329847539,1718747439263,-500.0,0.0001698,2]
[329847541,1718747439272,-548.81660986,0.00016981,2]
[329847543,1718747439281,-500.0,0.00016981,2]
[329847545,1718747439291,-500.0,0.00016981,2]
[329847547,1718747439300,-500.0,0.00016981,2]
[329847549,1718747439310,-2298.73,0.00016981,2]
[329847551,1718747439320,-500.0,0.00016981,2]
[329847553,1718747439330,-6108.8,0.00016981,2]
[329847556,1718747439339,-500.0,0.00016981,2]
[329847559,1718747439350,-500.0,0.00016981,2]
[329847561,1718747439360,-585.28,0.00016981,2]
[329847563,1718747439370,-513.71040959,0.00016981,2]
[329847565,1718747439379,-628.83503317,0.00016981,2]
[329847567,1718747439389,-500.0,0.00016981,2]
[329847569,1718747439399,-991.43,0.00016981,2]
[329847571,1718747439408,-500.0,0.00016981,2]
[329847573,1718747439420,-500.0,0.00016981,2]
[329847575,1718747439431,-500.0,0.00016981,2]
[329847577,1718747439440,-500.0,0.00016981,2]
[329847579,1718747439449,-500.0,0.00016981,2]
[329847581,1718747439459,-1419.43,0.00016981,2]
[329847583,1718747439468,-500.0,0.00016981,2]
[329847585,1718747439478,-500.0,0.00016981,2]
[329847587,1718747439488,-500.0,0.00016981,2]
[329847589,1718747439497,-500.0,0.00016981,2]
[329847591,1718747439507,-609.79,0.00016981,2]
[329847593,1718747439517,-500.0,0.00016981,2]
[329847595,1718747439527,-635.47,0.00016981,2]
[329847597,1718747439536,-500.0,0.00016981,2]
[329847599,1718747439546,-500.0,0.00016981,2]
[329847601,1718747439556,-500.0,0.00016981,2]
[329847603,1718747439566,-500.0,0.00016981,2]
[329847605,1718747439576,-985.81,0.00016982,2]
[329847607,1718747439586,-500.0,0.00016982,2]
[329847609,1718747439596,-500.0,0.00016983,2]
[329847611,1718747439606,-458.14579698,0.00016983,2]
[329847613,1718747439616,-500.0,0.00016983,2]
[329847615,1718747439625,-500.0,0.00016983,2]
[329847617,1718747439635,-500.0,0.00016983,2]
[329847619,1718747439644,-500.0,0.00016983,2]
[329847621,1718747439654,-500.0,0.00016983,2]
[329847623,1718747439665,-3733.66,0.00016983,2]
[329847625,1718747439675,-500.0,0.00016983,2]
[329847627,1718747439685,-500.0,0.00016983,2]
[329847629,1718747439694,-500.0,0.00016983,2]
[329847631,1718747439703,-500.0,0.00016983,2]
[329847633,1718747439713,-500.0,0.00016983,2]
[329847635,1718747439722,-500.0,0.00016984,2]
[329847637,1718747439731,-500.0,0.00016984,2]
[329847639,1718747439740,-500.0,0.00017254,2]
[329847641,1718747439749,-500.0,0.00017254,2]
[329847643,1718747439759,-500.0,0.00017255,2]
[329847645,1718747439768,-483.43708064,0.00017255,2]
[329847646,1718747439780,-1815.29291936,0.00017255,2]
[329847647,1718747439790,-146.05610668,0.00017255,2]
[329847648,1718747439801,-353.94389332,0.00017255,2]
[329847649,1718747439810,-6108.8,0.00017255,2]
[329847650,1718747439819,-500.0,0.00017255,2]
[329847651,1718747439828,-500.0,0.00017255,2]